[Event "Early-Titled-Tuesday-Blitz-May-07-2024"]
[Site "Chess.com"]
[Date "2024.05.07"]
[Round "3"]
[White "RusPakhom"]
[Black "Senn71"]
[Result "0-1"]
[WhiteElo "2381"]
[BlackElo "2216"]
[TimeControl "180+1"]
[EndTime "8:31:57 PDT"]
[Termination "Senn71 won by resignation"]

1. d4 {[%clk 0:03:00.9]} 1... d5 {[%clk 0:02:59]} 2. c4 {[%clk 0:03:00.6]} 2...
c6 {[%clk 0:02:59.5]} 3. Nc3 {[%clk 0:03:00.4]} 3... Nf6 {[%clk 0:02:59.8]} 4.
Nf3 {[%clk 0:03:00.8]} 4... a6 {[%clk 0:02:59.5]} 5. e3 {[%clk 0:03:00.3]} 5...
b5 {[%clk 0:02:58.7]} 6. b3 {[%clk 0:03:00.3]} 6... Bg4 {[%clk 0:02:57.9]} 7. h3
{[%clk 0:03:00.1]} 7... Bxf3 {[%clk 0:02:57.2]} 8. Qxf3 {[%clk 0:03:01]} 8... e6
{[%clk 0:02:57.1]} 9. Bd2 {[%clk 0:03:00]} 9... Nbd7 {[%clk 0:02:54.5]} 10. g4
{[%clk 0:02:31.7]} 10... h6 {[%clk 0:02:38.8]} 11. Qg2 {[%clk 0:02:22.1]} 11...
Bb4 {[%clk 0:02:33.4]} 12. Bd3 {[%clk 0:02:15.7]} 12... Qa5 {[%clk 0:02:25.4]}
13. Rc1 {[%clk 0:02:13]} 13... Bxc3 {[%clk 0:02:00.2]} 14. Bxc3 {[%clk
0:02:12.4]} 14... Qxa2 {[%clk 0:02:00.8]} 15. O-O {[%clk 0:01:51]} 15... Qxb3
{[%clk 0:01:57.5]} 16. c5 {[%clk 0:01:21.7]} 16... b4 {[%clk 0:01:44.5]} 17. Bc2
{[%clk 0:01:00.2]} 17... Qxc3 {[%clk 0:01:34.7]} 18. Ba4 {[%clk 0:01:00.4]}
18... Qd3 {[%clk 0:01:30.9]} 19. Bc2 {[%clk 0:00:44.8]} 19... Qb5 {[%clk
0:01:22.3]} 20. Ra1 {[%clk 0:00:41.8]} 20... O-O {[%clk 0:01:10.4]} 21. Rfb1
{[%clk 0:00:39]} 21... a5 {[%clk 0:01:07.7]} 22. h4 {[%clk 0:00:29.2]} 22... Qc4
{[%clk 0:00:54]} 23. Rc1 {[%clk 0:00:26.6]} 23... Qb5 {[%clk 0:00:51.8]} 24. g5
{[%clk 0:00:26]} 24... hxg5 {[%clk 0:00:51.9]} 25. hxg5 {[%clk 0:00:26.9]} 25...
Ne4 {[%clk 0:00:52.3]} 26. Qh2 {[%clk 0:00:20.6]} 26... f5 {[%clk 0:00:47.9]}
27. g6 {[%clk 0:00:15.3]} 27... Ndf6 {[%clk 0:00:38.1]} 28. f3 {[%clk
0:00:15.5]} 28... Nc3 {[%clk 0:00:34.2]} 29. Re1 {[%clk 0:00:12.3]} 29... b3
{[%clk 0:00:27.5]} 30. Qe5 {[%clk 0:00:10.8]} 30... Rfe8 {[%clk 0:00:23.5]} 31.
Bxf5 {[%clk 0:00:05.4]} 31... exf5 {[%clk 0:00:22.3]} 32. Qxf5 {[%clk
0:00:06.3]} 32... b2 {[%clk 0:00:21.2]} 33. Rab1 {[%clk 0:00:05.1]} 33... Nxb1
{[%clk 0:00:20.5]} 34. Rxb1 {[%clk 0:00:05.9]} 34... Qe2 {[%clk 0:00:19.2]} 35.
e4 {[%clk 0:00:04.4]} 35... dxe4 {[%clk 0:00:17.5]} 36. f4 {[%clk 0:00:03.3]}
36... e3 {[%clk 0:00:17]} 0-1

[Event "Early-Titled-Tuesday-Blitz-May-07-2024"]
[Site "Chess.com"]
[Date "2024.05.07"]
[Round "3"]
[White "Alina_Gumerovna"]
[Black "milovichalex"]
[Result "1-0"]
[WhiteElo "2181"]
[BlackElo "2367"]
[TimeControl "180+1"]
[EndTime "8:31:58 PDT"]
[Termination "Alina_Gumerovna won on time"]

1. e4 {[%clk 0:02:59.4]} 1... e5 {[%clk 0:02:59.5]} 2. Nf3 {[%clk 0:02:59.7]}
2... Nc6 {[%clk 0:03:00]} 3. Bb5 {[%clk 0:03:00.5]} 3... a6 {[%clk 0:03:00]} 4.
Ba4 {[%clk 0:03:00.8]} 4... Nf6 {[%clk 0:03:00.2]} 5. O-O {[%clk 0:03:00.6]}
5... Be7 {[%clk 0:03:00.7]} 6. d4 {[%clk 0:02:57]} 6... exd4 {[%clk 0:02:51.9]}
7. e5 {[%clk 0:02:57.9]} 7... Ne4 {[%clk 0:02:51.1]} 8. Re1 {[%clk 0:02:45.7]}
8... Nc5 {[%clk 0:02:50]} 9. Bxc6 {[%clk 0:02:45.9]} 9... dxc6 {[%clk
0:02:50.2]} 10. Qxd4 {[%clk 0:02:32.7]} 10... Bf5 {[%clk 0:02:36.9]} 11. Na3
{[%clk 0:01:14.3]} 11... Ne6 {[%clk 0:02:03.1]} 12. Qc3 {[%clk 0:00:49.8]} 12...
a5 {[%clk 0:01:46.4]} 13. Bd2 {[%clk 0:00:35.5]} 13... Bb4 {[%clk 0:01:40.1]}
14. Qe3 {[%clk 0:00:34.8]} 14... Bc5 {[%clk 0:01:34.5]} 15. Qc3 {[%clk
0:00:21.3]} 15... O-O {[%clk 0:01:28.4]} 16. Nc4 {[%clk 0:00:17.3]} 16... Nd4
{[%clk 0:01:08.4]} 17. Nxd4 {[%clk 0:00:08.9]} 17... Bxd4 {[%clk 0:01:07.4]} 18.
Qf3 {[%clk 0:00:09.3]} 18... Bxc2 {[%clk 0:01:01.8]} 19. Rac1 {[%clk 0:00:09.2]}
19... Bd3 {[%clk 0:00:47.6]} 20. Ne3 {[%clk 0:00:03.6]} 20... Bxb2 {[%clk
0:00:37.1]} 21. Rcd1 {[%clk 0:00:04.4]} 21... Qe7 {[%clk 0:00:26.5]} 22. Ng4
{[%clk 0:00:04.6]} 22... Bc2 {[%clk 0:00:23.3]} 23. Bf4 {[%clk 0:00:02.9]} 23...
Bxd1 {[%clk 0:00:19.9]} 24. Rxd1 {[%clk 0:00:03.5]} 24... Rad8 {[%clk
0:00:19.2]} 25. Re1 {[%clk 0:00:04]} 25... Rd5 {[%clk 0:00:15.8]} 26. Bh6 {[%clk
0:00:04]} 26... gxh6 {[%clk 0:00:13.4]} 27. Nf6+ {[%clk 0:00:03.7]} 27... Kh8
{[%clk 0:00:12.7]} 28. Qf5 {[%clk 0:00:04.1]} 28... Qxf6 {[%clk 0:00:07.9]} 29.
Qxf6+ {[%clk 0:00:05]} 29... Kg8 {[%clk 0:00:07.8]} 30. h4 {[%clk 0:00:05.3]}
1-0

[Event "Early-Titled-Tuesday-Blitz-May-07-2024"]
[Site "Chess.com"]
[Date "2024.05.07"]
[Round "3"]
[White "jk13"]
[Black "slorovel"]
[Result "0-1"]
[WhiteElo "2663"]
[BlackElo "2517"]
[TimeControl "180+1"]
[EndTime "8:32:00 PDT"]
[Termination "slorovel won by resignation"]

1. e4 {[%clk 0:03:00.9]} 1... e6 {[%clk 0:02:57.8]} 2. d4 {[%clk 0:02:59.1]}
2... d5 {[%clk 0:02:57.7]} 3. Nd2 {[%clk 0:03:00]} 3... e5 {[%clk 0:02:57.4]} 4.
dxe5 {[%clk 0:02:58.2]} 4... dxe4 {[%clk 0:02:57.4]} 5. Nxe4 {[%clk 0:02:57]}
5... Qxd1+ {[%clk 0:02:56.9]} 6. Kxd1 {[%clk 0:02:57.9]} 6... Nc6 {[%clk
0:02:57.1]} 7. f4 {[%clk 0:02:39.8]} 7... Bg4+ {[%clk 0:02:46.4]} 8. Be2 {[%clk
0:02:33.8]} 8... O-O-O+ {[%clk 0:02:47.3]} 9. Ke1 {[%clk 0:02:33.2]} 9... Bf5
{[%clk 0:02:47.2]} 10. Ng5 {[%clk 0:02:14.5]} 10... Nh6 {[%clk 0:02:39.1]} 11.
c3 {[%clk 0:02:13.6]} 11... f6 {[%clk 0:02:21.8]} 12. N5f3 {[%clk 0:02:03]}
12... Bc5 {[%clk 0:02:03]} 13. b4 {[%clk 0:01:53.4]} 13... Bb6 {[%clk
0:02:01.2]} 14. a4 {[%clk 0:01:49]} 14... a5 {[%clk 0:02:00.6]} 15. b5 {[%clk
0:01:49.1]} 15... Ne7 {[%clk 0:02:00.2]} 16. Nd4 {[%clk 0:01:11.3]} 16... fxe5
{[%clk 0:01:42.3]} 17. fxe5 {[%clk 0:01:06.5]} 17... Be4 {[%clk 0:01:36.9]} 18.
Ngf3 {[%clk 0:00:56.8]} 18... Nhf5 {[%clk 0:01:25.6]} 19. Bg5 {[%clk 0:00:43.6]}
19... Rde8 {[%clk 0:01:17.8]} 20. Rd1 {[%clk 0:00:40.1]} 20... h6 {[%clk
0:01:15.1]} 21. Bc1 {[%clk 0:00:40.2]} 21... g5 {[%clk 0:01:11.1]} 22. g4 {[%clk
0:00:34.6]} 22... Nh4 {[%clk 0:01:01.8]} 23. Rf1 {[%clk 0:00:33.9]} 23... Nd5
{[%clk 0:00:39.2]} 24. Nxh4 {[%clk 0:00:33]} 24... gxh4 {[%clk 0:00:40.1]} 25.
Bb2 {[%clk 0:00:22.2]} 25... Rxe5 {[%clk 0:00:27.6]} 26. Kd2 {[%clk 0:00:20.3]}
26... Rhe8 {[%clk 0:00:26.6]} 27. Rde1 {[%clk 0:00:19.8]} 27... Bg2 {[%clk
0:00:25.6]} 28. Rg1 {[%clk 0:00:18.6]} 28... h3 {[%clk 0:00:25.7]} 29. c4 {[%clk
0:00:13.4]} 29... Re4 {[%clk 0:00:23.2]} 30. Nf5 {[%clk 0:00:11.1]} 30... Nf4
{[%clk 0:00:20.5]} 31. Bd1 {[%clk 0:00:08.1]} 31... Bxg1 {[%clk 0:00:19.9]} 32.
Rxg1 {[%clk 0:00:09]} 32... Rd8+ {[%clk 0:00:17.2]} 33. Kc1 {[%clk 0:00:06.8]}
33... Ne2+ {[%clk 0:00:17]} 34. Bxe2 {[%clk 0:00:06.4]} 34... Rxe2 {[%clk
0:00:17.9]} 35. Bc3 {[%clk 0:00:05.2]} 35... Rf2 {[%clk 0:00:17.3]} 36. Rd1
{[%clk 0:00:04.4]} 36... Rxd1+ {[%clk 0:00:16.3]} 37. Kxd1 {[%clk 0:00:05.3]}
37... Bf3+ {[%clk 0:00:16.7]} 38. Ke1 {[%clk 0:00:05.7]} 38... Rxh2 {[%clk
0:00:16.5]} 39. Nxh6 {[%clk 0:00:06.4]} 39... Rg2 {[%clk 0:00:16.5]} 40. Be5
{[%clk 0:00:06.1]} 40... h2 {[%clk 0:00:16.3]} 41. Bxh2 {[%clk 0:00:07]} 41...
Rxh2 {[%clk 0:00:16.9]} 42. Nf5 {[%clk 0:00:07.8]} 42... Rg2 {[%clk 0:00:16.7]}
43. Ne3 {[%clk 0:00:08]} 43... Re2+ {[%clk 0:00:15.6]} 0-1

[Event "Early-Titled-Tuesday-Blitz-May-07-2024"]
[Site "Chess.com"]
[Date "2024.05.07"]
[Round "3"]
[White "Larina_Maria"]
[Black "EgorYakovlev"]
[Result "0-1"]
[WhiteElo "2353"]
[BlackElo "2577"]
[TimeControl "180+1"]
[EndTime "8:32:00 PDT"]
[Termination "EgorYakovlev won by resignation"]

1. e4 {[%clk 0:03:00.9]} 1... c5 {[%clk 0:02:56.6]} 2. Nc3 {[%clk 0:03:00.5]}
2... a6 {[%clk 0:02:55]} 3. g3 {[%clk 0:02:59.8]} 3... b5 {[%clk 0:02:55]} 4.
Bg2 {[%clk 0:03:00.3]} 4... Bb7 {[%clk 0:02:55.6]} 5. a4 {[%clk 0:02:48.6]} 5...
b4 {[%clk 0:02:55]} 6. Nd5 {[%clk 0:02:48.6]} 6... e6 {[%clk 0:02:54.8]} 7. Ne3
{[%clk 0:02:48.5]} 7... Nf6 {[%clk 0:02:53.5]} 8. d3 {[%clk 0:02:40.6]} 8... d5
{[%clk 0:02:52.7]} 9. e5 {[%clk 0:02:39.3]} 9... Nfd7 {[%clk 0:02:50.8]} 10. f4
{[%clk 0:02:39.4]} 10... Qb6 {[%clk 0:02:48.6]} 11. Nf3 {[%clk 0:02:32]} 11...
h5 {[%clk 0:02:41.1]} 12. c3 {[%clk 0:02:31.3]} 12... g6 {[%clk 0:02:40.4]} 13.
O-O {[%clk 0:02:13.9]} 13... a5 {[%clk 0:02:38.8]} 14. Kh1 {[%clk 0:02:13.6]}
14... Nc6 {[%clk 0:02:37.1]} 15. c4 {[%clk 0:01:28]} 15... Ne7 {[%clk
0:02:34.4]} 16. b3 {[%clk 0:01:18.9]} 16... d4 {[%clk 0:02:22.7]} 17. Nc2 {[%clk
0:01:16.7]} 17... Nf5 {[%clk 0:02:23]} 18. Nfe1 {[%clk 0:00:55.9]} 18... h4
{[%clk 0:02:18]} 19. g4 {[%clk 0:00:54.6]} 19... Nh6 {[%clk 0:01:27.5]} 20. h3
{[%clk 0:00:42.1]} 20... O-O-O {[%clk 0:01:26.8]} 21. Bxb7+ {[%clk 0:00:37.6]}
21... Qxb7+ {[%clk 0:01:26.6]} 22. Qf3 {[%clk 0:00:38.2]} 22... Be7 {[%clk
0:01:21.8]} 23. Qxb7+ {[%clk 0:00:36.2]} 23... Kxb7 {[%clk 0:01:22.7]} 24. Nf3
{[%clk 0:00:36.5]} 24... Kc6 {[%clk 0:01:18.4]} 25. Nce1 {[%clk 0:00:36.2]}
25... Ng8 {[%clk 0:01:16]} 26. Ng2 {[%clk 0:00:35.8]} 26... f6 {[%clk
0:01:12.4]} 27. exf6 {[%clk 0:00:22.6]} 27... Bxf6 {[%clk 0:01:11.1]} 28. Re1
{[%clk 0:00:23.3]} 28... Kd6 {[%clk 0:01:10.4]} 29. Bd2 {[%clk 0:00:23]} 29...
Ne7 {[%clk 0:01:03.3]} 30. Ng5 {[%clk 0:00:19]} 30... Bxg5 {[%clk 0:00:59.9]}
31. fxg5 {[%clk 0:00:19.9]} 31... Nc6 {[%clk 0:00:56.3]} 32. Re2 {[%clk
0:00:17.6]} 32... Rdf8 {[%clk 0:00:51.8]} 33. Rae1 {[%clk 0:00:17.7]} 33... e5
{[%clk 0:00:51.9]} 34. Kg1 {[%clk 0:00:16]} 34... Rf3 {[%clk 0:00:51.4]} 35. Rf2
{[%clk 0:00:11.3]} 35... Rxh3 {[%clk 0:00:46.8]} 36. Ref1 {[%clk 0:00:09.5]}
36... Rxd3 {[%clk 0:00:46.4]} 37. Bc1 {[%clk 0:00:08.7]} 37... h3 {[%clk
0:00:43.8]} 38. Ne1 {[%clk 0:00:08]} 38... Rxb3 {[%clk 0:00:43.6]} 39. Rf7
{[%clk 0:00:07.7]} 39... Rc3 {[%clk 0:00:36.5]} 40. Rg7 {[%clk 0:00:07.9]} 40...
Rxc1 {[%clk 0:00:34.3]} 41. Rxg6+ {[%clk 0:00:07.5]} 41... Kc7 {[%clk
0:00:34.9]} 42. Rg7 {[%clk 0:00:06.3]} 42... e4 {[%clk 0:00:33.4]} 43. Kf2
{[%clk 0:00:03.1]} 43... Rf8+ {[%clk 0:00:32.5]} 44. Ke2 {[%clk 0:00:02.8]}
44... Rxf1 {[%clk 0:00:32.7]} 45. Kxf1 {[%clk 0:00:03.7]} 45... d3 {[%clk
0:00:33]} 46. Kf2 {[%clk 0:00:02.5]} 46... d2 {[%clk 0:00:33.4]} 0-1

[Event "Early-Titled-Tuesday-Blitz-May-07-2024"]
[Site "Chess.com"]
[Date "2024.05.07"]
[Round "3"]
[White "lcmil"]
[Black "chess123456s"]
[Result "0-1"]
[WhiteElo "2459"]
[BlackElo "2631"]
[TimeControl "180+1"]
[EndTime "8:32:02 PDT"]
[Termination "chess123456s won by resignation"]

1. e4 {[%clk 0:03:00.9]} 1... e5 {[%clk 0:02:58.6]} 2. Nf3 {[%clk 0:02:56.3]}
2... Nc6 {[%clk 0:02:57.9]} 3. Bc4 {[%clk 0:02:56.9]} 3... Nf6 {[%clk
0:02:56.4]} 4. Ng5 {[%clk 0:02:57.5]} 4... d5 {[%clk 0:02:56.4]} 5. exd5 {[%clk
0:02:58.2]} 5... Na5 {[%clk 0:02:57]} 6. Bb5+ {[%clk 0:02:58.6]} 6... c6 {[%clk
0:02:57.5]} 7. dxc6 {[%clk 0:02:59.3]} 7... bxc6 {[%clk 0:02:58.4]} 8. Qf3
{[%clk 0:02:57.4]} 8... cxb5 {[%clk 0:02:58.3]} 9. Qxa8 {[%clk 0:02:56.5]} 9...
Qc7 {[%clk 0:02:58.8]} 10. O-O {[%clk 0:02:20.2]} 10... Nc6 {[%clk 0:02:56.2]}
11. d4 {[%clk 0:02:15]} 11... Bd6 {[%clk 0:02:45.9]} 12. Nc3 {[%clk 0:02:13.1]}
12... a6 {[%clk 0:02:23]} 13. a4 {[%clk 0:01:52.9]} 13... O-O {[%clk 0:02:11]}
14. axb5 {[%clk 0:01:51.9]} 14... Bb7 {[%clk 0:02:09.7]} 15. Qxf8+ {[%clk
0:01:49.7]} 15... Bxf8 {[%clk 0:01:58.7]} 16. bxc6 {[%clk 0:01:49.6]} 16... Qxc6
{[%clk 0:01:59.4]} 17. Nf3 {[%clk 0:01:03.2]} 17... exd4 {[%clk 0:01:57.3]} 18.
Ne2 {[%clk 0:01:02.6]} 18... Qxc2 {[%clk 0:01:18.9]} 19. Nexd4 {[%clk
0:00:57.5]} 19... Qd3 {[%clk 0:01:16.5]} 20. Bg5 {[%clk 0:00:48.2]} 20... Nd5
{[%clk 0:01:09.7]} 21. Rfe1 {[%clk 0:00:38]} 21... h6 {[%clk 0:01:05.9]} 22. Bh4
{[%clk 0:00:32.6]} 22... Bc5 {[%clk 0:01:00.8]} 23. Rad1 {[%clk 0:00:25.5]}
23... Qg6 {[%clk 0:00:54]} 24. Bg3 {[%clk 0:00:20.3]} 24... Nf6 {[%clk
0:00:29.9]} 25. Nb3 {[%clk 0:00:14.1]} 25... Bxf3 {[%clk 0:00:26.3]} 26. Rd8+
{[%clk 0:00:08.9]} 26... Bf8 {[%clk 0:00:23.7]} 27. gxf3 {[%clk 0:00:09]} 27...
Qc2 {[%clk 0:00:11.4]} 28. Nd4 {[%clk 0:00:05.6]} 28... Qd2 {[%clk 0:00:09.7]}
29. Re2 {[%clk 0:00:04.3]} 29... Qd1+ {[%clk 0:00:09]} 30. Kg2 {[%clk 0:00:05]}
30... Nh5 {[%clk 0:00:07.4]} 31. Bd6 {[%clk 0:00:04.9]} 31... Kh7 {[%clk
0:00:06.6]} 32. Bxf8 {[%clk 0:00:04.8]} 32... Nf4+ {[%clk 0:00:05.8]} 33. Kg3
{[%clk 0:00:05.4]} 33... Nxe2+ {[%clk 0:00:06.2]} 34. Nxe2 {[%clk 0:00:03.2]}
34... Qxd8 {[%clk 0:00:07.1]} 35. Bc5 {[%clk 0:00:03.4]} 35... Qc7+ {[%clk
0:00:07.4]} 0-1

[Event "Early-Titled-Tuesday-Blitz-May-07-2024"]
[Site "Chess.com"]
[Date "2024.05.07"]
[Round "3"]
[White "CristianS27"]
[Black "sterpfi"]
[Result "0-1"]
[WhiteElo "2554"]
[BlackElo "2307"]
[TimeControl "180+1"]
[EndTime "8:32:02 PDT"]
[Termination "sterpfi won on time"]

1. e4 {[%clk 0:02:56.2]} 1... e6 {[%clk 0:02:59.8]} 2. d4 {[%clk 0:02:55.9]}
2... d5 {[%clk 0:03:00.4]} 3. Nc3 {[%clk 0:02:56.1]} 3... Bb4 {[%clk 0:03:00.1]}
4. exd5 {[%clk 0:02:55]} 4... exd5 {[%clk 0:02:59.9]} 5. Qf3 {[%clk 0:02:55.7]}
5... Qe7+ {[%clk 0:02:58.5]} 6. Be2 {[%clk 0:02:46]} 6... Nf6 {[%clk 0:02:51.1]}
7. Bg5 {[%clk 0:02:43.7]} 7... Nbd7 {[%clk 0:02:35.6]} 8. O-O-O {[%clk
0:02:38.7]} 8... O-O {[%clk 0:02:35.4]} 9. Nxd5 {[%clk 0:02:35.9]} 9... Qd6
{[%clk 0:02:20.1]} 10. Nxb4 {[%clk 0:02:16.8]} 10... Qxb4 {[%clk 0:02:17.6]} 11.
Bd3 {[%clk 0:02:06.2]} 11... c5 {[%clk 0:01:40.9]} 12. dxc5 {[%clk 0:01:53.1]}
12... Ne5 {[%clk 0:01:40.7]} 13. Qg3 {[%clk 0:01:37.7]} 13... Nxd3+ {[%clk
0:01:37.3]} 14. Rxd3 {[%clk 0:01:33.9]} 14... Ne4 {[%clk 0:01:26.2]} 15. Qe3
{[%clk 0:01:09.7]} 15... Nxg5 {[%clk 0:01:14.1]} 16. Qxg5 {[%clk 0:01:10.6]}
16... Qe1+ {[%clk 0:01:14.4]} 17. Rd1 {[%clk 0:01:11.2]} 17... Qxf2 {[%clk
0:01:15.3]} 18. Nf3 {[%clk 0:01:07.8]} 18... h6 {[%clk 0:01:01.9]} 19. Qd2
{[%clk 0:00:58.4]} 19... Qxc5 {[%clk 0:00:59.8]} 20. Kb1 {[%clk 0:00:46.1]}
20... Bf5 {[%clk 0:00:56.2]} 21. Nd4 {[%clk 0:00:40.3]} 21... Bg6 {[%clk
0:00:51.9]} 22. Nb3 {[%clk 0:00:40.4]} 22... Qc7 {[%clk 0:00:45.7]} 23. Rc1
{[%clk 0:00:37]} 23... Rad8 {[%clk 0:00:45.4]} 24. Qf2 {[%clk 0:00:33]} 24...
Rfe8 {[%clk 0:00:41.8]} 25. h4 {[%clk 0:00:32.9]} 25... Qc4 {[%clk 0:00:35.6]}
26. h5 {[%clk 0:00:31]} 26... Re2 {[%clk 0:00:28.7]} 27. Qg3 {[%clk 0:00:09.9]}
27... Bxc2+ {[%clk 0:00:26.4]} 28. Ka1 {[%clk 0:00:09.8]} 28... Qa6 {[%clk
0:00:13.3]} 29. Rhe1 {[%clk 0:00:06]} 29... Bxb3 {[%clk 0:00:12.5]} 30. Qxb3
{[%clk 0:00:04.6]} 30... Rxe1 {[%clk 0:00:11.7]} 31. Rxe1 {[%clk 0:00:05.5]}
31... Qd3 {[%clk 0:00:10.4]} 32. Qa4 {[%clk 0:00:00.7]} 32... Qd2 {[%clk
0:00:09.1]} 33. Rb1 {[%clk 0:00:00.3]} 33... Qxg2 {[%clk 0:00:08.5]} 34. Qxa7
{[%clk 0:00:00.4]} 34... Qc6 {[%clk 0:00:08.5]} 0-1

[Event "Early-Titled-Tuesday-Blitz-May-07-2024"]
[Site "Chess.com"]
[Date "2024.05.07"]
[Round "3"]
[White "viktorskliarov"]
[Black "K_A_S_T_O_R"]
[Result "1/2-1/2"]
[WhiteElo "2640"]
[BlackElo "2880"]
[TimeControl "180+1"]
[EndTime "8:32:04 PDT"]
[Termination "Game drawn - insufficient material"]

1. e4 {[%clk 0:03:00.9]} 1... c5 {[%clk 0:02:57.9]} 2. Nf3 {[%clk 0:03:00.7]}
2... d6 {[%clk 0:02:58.4]} 3. d4 {[%clk 0:03:00.8]} 3... cxd4 {[%clk 0:02:58.5]}
4. Qxd4 {[%clk 0:03:01.5]} 4... Bd7 {[%clk 0:02:56]} 5. c4 {[%clk 0:03:00.4]}
5... Nc6 {[%clk 0:02:55.8]} 6. Qd2 {[%clk 0:03:00.3]} 6... g6 {[%clk 0:02:55.3]}
7. b3 {[%clk 0:03:00.8]} 7... Bh6 {[%clk 0:02:53.1]} 8. Qc3 {[%clk 0:03:00.1]}
8... Qa5 {[%clk 0:02:52.3]} 9. Qxa5 {[%clk 0:02:55.5]} 9... Nxa5 {[%clk
0:02:52.5]} 10. Bxh6 {[%clk 0:02:52.6]} 10... Nxh6 {[%clk 0:02:51.9]} 11. Nc3
{[%clk 0:02:53.1]} 11... Ng4 {[%clk 0:02:50.7]} 12. h3 {[%clk 0:02:50.4]} 12...
Ne5 {[%clk 0:02:50.2]} 13. Be2 {[%clk 0:02:23.8]} 13... Nac6 {[%clk 0:02:47.7]}
14. O-O-O {[%clk 0:02:22.8]} 14... Rc8 {[%clk 0:02:44.9]} 15. Kb2 {[%clk
0:02:18.2]} 15... Nxf3 {[%clk 0:02:41.1]} 16. Bxf3 {[%clk 0:02:16]} 16... Ne5
{[%clk 0:02:41.2]} 17. Be2 {[%clk 0:02:15.7]} 17... Bc6 {[%clk 0:02:41.7]} 18.
f4 {[%clk 0:01:50.8]} 18... Nd7 {[%clk 0:02:41]} 19. Bg4 {[%clk 0:01:41.1]}
19... Rc7 {[%clk 0:02:32.6]} 20. Bxd7+ {[%clk 0:01:27.5]} 20... Rxd7 {[%clk
0:02:30.5]} 21. Nd5 {[%clk 0:01:26.6]} 21... Rd8 {[%clk 0:02:24.6]} 22. Rhe1
{[%clk 0:01:23.2]} 22... e6 {[%clk 0:02:24]} 23. Nc3 {[%clk 0:01:05.5]} 23...
Ke7 {[%clk 0:02:22.2]} 24. b4 {[%clk 0:00:59.3]} 24... b6 {[%clk 0:02:21.4]} 25.
Re2 {[%clk 0:00:51.9]} 25... Rhe8 {[%clk 0:02:18]} 26. Red2 {[%clk 0:00:50.2]}
26... f5 {[%clk 0:02:16.3]} 27. Re1 {[%clk 0:00:39.9]} 27... Kf7 {[%clk
0:02:14.4]} 28. g3 {[%clk 0:00:36.6]} 28... h5 {[%clk 0:02:03.4]} 29. h4 {[%clk
0:00:35.9]} 29... fxe4 {[%clk 0:01:38]} 30. Nxe4 {[%clk 0:00:35.8]} 30... Bxe4
{[%clk 0:01:36.8]} 31. Rxe4 {[%clk 0:00:35.5]} 31... Rd7 {[%clk 0:01:37.1]} 32.
Kb3 {[%clk 0:00:27.9]} 32... Rc8 {[%clk 0:01:29.8]} 33. Red4 {[%clk 0:00:26.9]}
33... Ke7 {[%clk 0:01:26.6]} 34. Re2 {[%clk 0:00:24.6]} 34... Kf6 {[%clk
0:01:21.7]} 35. Red2 {[%clk 0:00:24.5]} 35... Rdc7 {[%clk 0:01:15.5]} 36. Rxd6
{[%clk 0:00:19.4]} 36... Rxc4 {[%clk 0:01:15.4]} 37. Re2 {[%clk 0:00:20.1]}
37... Rc3+ {[%clk 0:01:14.3]} 38. Ka4 {[%clk 0:00:20.2]} 38... Rxg3 {[%clk
0:01:11.9]} 39. Rexe6+ {[%clk 0:00:19.6]} 39... Kf5 {[%clk 0:01:03.9]} 40. Rf6+
{[%clk 0:00:19.4]} 40... Kg4 {[%clk 0:01:01]} 41. Rd4 {[%clk 0:00:14.3]} 41...
Kxh4 {[%clk 0:00:57]} 42. f5+ {[%clk 0:00:14.2]} 42... Rg4 {[%clk 0:00:57.3]}
43. Rxg4+ {[%clk 0:00:13.2]} 43... hxg4 {[%clk 0:00:57.6]} 44. Rxg6 {[%clk
0:00:13.1]} 44... Rf8 {[%clk 0:00:57.2]} 45. f6 {[%clk 0:00:13.2]} 45... Kh5
{[%clk 0:00:57.1]} 46. Rg7 {[%clk 0:00:13.6]} 46... Rxf6 {[%clk 0:00:57.3]} 47.
Rxa7 {[%clk 0:00:13.3]} 47... g3 {[%clk 0:00:57.4]} 48. Rh7+ {[%clk 0:00:13.2]}
48... Kg5 {[%clk 0:00:54]} 49. Rh1 {[%clk 0:00:12.6]} 49... Kg4 {[%clk
0:00:53.3]} 50. Kb5 {[%clk 0:00:12.7]} 50... g2 {[%clk 0:00:51.4]} 51. Rg1
{[%clk 0:00:12.9]} 51... Kg3 {[%clk 0:00:51.8]} 52. a4 {[%clk 0:00:12.5]} 52...
Kf2 {[%clk 0:00:52.1]} 53. Rxg2+ {[%clk 0:00:12.6]} 53... Kxg2 {[%clk
0:00:52.6]} 54. a5 {[%clk 0:00:13.5]} 54... bxa5 {[%clk 0:00:52.7]} 55. bxa5
{[%clk 0:00:14.2]} 55... Rf1 {[%clk 0:00:51.8]} 56. a6 {[%clk 0:00:14.3]} 56...
Rb1+ {[%clk 0:00:52.4]} 57. Kc6 {[%clk 0:00:14.4]} 57... Kf3 {[%clk 0:00:52.9]}
58. a7 {[%clk 0:00:14.5]} 58... Ra1 {[%clk 0:00:53.5]} 59. Kb7 {[%clk 0:00:15]}
59... Rxa7+ {[%clk 0:00:52.8]} 60. Kxa7 {[%clk 0:00:15.2]} 1/2-1/2